lending/lending_fUSD_20241229
["ID","MTS","AMOUNT","RATE_DAILY","PERIOD"]
[346966581,1735437032271,-4544.17406355,0.00012,2]
[346966583,1735437032281,-250.0,0.00012033,2]
[346966584,1735437032290,-1000.0,0.00012093,2]
[346966586,1735437032299,-150.0,0.00012192,2]
[346966588,1735437032308,-7207.05311074,0.00012217,2]
[346966590,1735437032318,-181.15,0.000123,2]
[346966592,1735437032327,-806.02,0.00012327,2]
[346966594,1735437032336,-326.879,0.0001235,2]
[346966596,1735437032346,-319.7994732,0.00012438,2]
[346966598,1735437032355,-319.7994732,0.00012439,2]
[346966600,1735437032364,-319.7994732,0.00012448,2]
[346966602,1735437032373,-319.7994732,0.00012457,2]
[346966604,1735437032383,-319.7994732,0.00012459,2]
[346966606,1735437032392,-319.7994732,0.00012463,2]
[346966607,1735437032402,-1260.56,0.00012483,2]
[346966610,1735437032411,-1000.0,0.000127,2]
[346966611,1735437032420,-239.55122691,0.00012805,2]
[346966613,1735437032429,-23111.61148311,0.00012898,2]
[346966615,1735437032438,-374.21,0.00012899,2]
[346966617,1735437032449,-34955.3558,0.00012899,2]
[346966619,1735437032458,-50433.9192,0.000129,2]
[346966621,1735437032467,-5000.0,0.000129,2]
[346966623,1735437032476,-200.9625,0.000129,2]
[346966625,1735437032486,-169.07829767,0.000129,2]
[346966627,1735437032496,-1491.3349854,0.000129,3]
[346966629,1735437032505,-164.21963215,0.000129,2]
[346966631,1735437032514,-430.28,0.000129,2]
[346966633,1735437032523,-183.9894149,0.000129,2]
[346966635,1735437032533,-195.42338847,0.000129,2]
[346966637,1735437032543,-1051.534,0.00012972,2]
[346966639,1735437032553,-503.87142508,0.00012973,2]
[346966641,1735437032562,-150.78,0.00012983,2]
[346966643,1735437032571,-150.54,0.00012983,2]
[346966645,1735437032580,-151.91,0.00012983,2]
[346966647,1735437032590,-296.50966662,0.00012999,2]
[346966649,1735437032599,-1411.2234,0.00012999,2]
[346966651,1735437032608,-500.0,0.00012999,2]
[346966653,1735437032618,-407.02642378,0.00012999,2]
[346966655,1735437032627,-500.0,0.00012999,2]
[346966657,1735437032637,-500.0,0.00012999,2]
[346966659,1735437032646,-500.0,0.00012999,2]
[346966661,1735437032655,-500.0,0.00012999,2]
[346966663,1735437032664,-492.45360206,0.00012999,2]
[346966665,1735437032673,-219221.50783449,0.00013,2]
[346966668,1735437032700,-1461.29771411,0.00013,2]
[346966670,1735437032715,-350.8690286,0.00013,2]
[346966672,1735437032726,-696.11325729,0.00013,2]
[346966674,1735437032737,-953.78591652,0.00013,2]
[346966735,1735437037598,-103153.0838849,0.00013,2]
[346966737,1735437037760,-9458.38404355,0.00013,2]
[346966738,1735437037920,-467.52,0.00013,2]
[346966762,1735437039735,-1927.53049309,0.00013,2]
[346966763,1735437039747,-4740.1001,0.00013,2]
[346966764,1735437039759,-1570.86251771,0.00013,2]
[346966765,1735437039908,-5384.07219821,0.00013,2]
[346966766,1735437039920,-642.97607776,0.00013,2]
[346966767,1735437040073,-783.44824385,0.00013,2]
[346966779,1735437042835,-476.67811274,0.00013,2]
[346966780,1735437042846,-612.9450285,0.00013,2]
[346966781,1735437042857,-347.85,0.00013,2]
[346966782,1735437042868,-9311.04221422,0.00013,2]
[346966807,1735437045720,-418.66907585,0.00013,2]
[346966808,1735437045852,-2089.9728,0.00013,2]
[346966928,1735437098403,169.0,0.00021,120]
[346966989,1735438104494,1000.0,0.00021,120]
[346966990,1735438123062,1000.0,0.00021,120]
[346966991,1735438128308,1000.0,0.00021,120]
[346966992,1735438129201,1000.0,0.00021,120]
[346966993,1735438130065,1000.0,0.00021,120]
[346966994,1735438130817,1000.0,0.00021,120]
[346966995,1735438182028,1000.0,0.00013698,30]
[346966996,1735438182254,542.32433911,0.00013698,30]
[346967012,1735438231978,-238.65,0.00010137,2]
[346967013,1735438231987,-771.5,0.0001019,2]
[346967014,1735438231996,-20.39142396,0.00011334,2]
[346967015,1735438232008,-129.60857604,0.00011334,2]
[346967016,1735438232017,-1099.46,0.0001138,2]
[346967017,1735438232027,-250.0,0.00011396,2]
[346967018,1735438232036,-150.0,0.00011568,2]
[346967019,1735438232046,-150.0,0.00011638,2]
[346967020,1735438232055,-150.0,0.00011663,2]
[346967021,1735438232065,-130.83212307,0.00011754,2]
[346967022,1735438232076,-19.16787693,0.00011754,2]
[346967023,1735438232086,-250.0,0.00011761,2]
[346967024,1735438232095,-280.96,0.00011868,2]
[346967025,1735438232104,-199.55,0.00011879,2]
[346967026,1735438232114,-199.55,0.00011908,2]
[346967027,1735438232123,-199.55,0.00011938,2]
[346967028,1735438232132,-250.0,0.00011967,2]
[346967029,1735438232142,-300.0,0.00011999,2]
[346967030,1735438232152,-450.0,0.00012,2]
[346967031,1735438232161,-88197.34019715,0.00012,2]
[346967032,1735438232172,-1553.5356151,0.00012,2]
[346967033,1735438232185,-9231.55997168,0.00012,2]
[346967034,1735438232198,-74808.56421607,0.00012,2]
[346967035,1735438232209,-400.0,0.00012001,2]
[346967036,1735438232219,-1063.43,0.00012134,2]
[346967037,1735438232229,-150.0,0.00012142,2]
[346967038,1735438232239,-1000.0,0.00012324,2]
[346967039,1735438232248,-150.0,0.00012341,2]
[346967040,1735438232258,-340.083,0.0001235,2]
[346967041,1735438232267,-6697.83833328,0.0001235,2]
[346967042,1735438232277,-169.32,0.00012361,2]
[346967043,1735438232287,-771.5,0.00012454,2]
[346967044,1735438232296,-759.6,0.00012521,2]
[346967045,1735438232305,-184.37,0.00012521,2]
[346967046,1735438232315,-500.0,0.00012799,2]
[346967047,1735438232324,-595.14,0.00012799,2]
[346967048,1735438232333,-500.0,0.00012799,2]
[346967049,1735438232342,-517.84185986,0.00012799,2]
[346967050,1735438232352,-1001.46,0.000128,2]
[346967051,1735438232362,-1099.46,0.00012802,2]
[346967052,1735438232371,-152.08,0.0001285,2]
[346967053,1735438232381,-151.74,0.0001285,2]
[346967054,1735438232390,-150.9,0.0001285,2]
[346967055,1735438232399,-1000.0,0.0001289,2]
[346967056,1735438232408,-373.73,0.000129,2]
[346967057,1735438232418,-202.9852,0.000129,2]
[346967058,1735438232427,-5000.0,0.000129,2]
[346967059,1735438232437,-280.0,0.000129,2]
[346967060,1735438232446,-284.43,0.000129,4]
[346967061,1735438232456,-500.0,0.00012988,2]
[346967062,1735438232465,-500.0,0.00012988,2]
[346967063,1735438232475,-828.82,0.00012988,2]
[346967064,1735438232484,-500.0,0.00012988,2]
[346967065,1735438232493,-1206.48,0.00012989,2]
[346967066,1735438232502,-864.27,0.00012989,2]
[346967067,1735438232512,-500.0,0.00012989,2]
[346967068,1735438232521,-500.0,0.00012989,2]
[346967069,1735438232530,-2322.8,0.00012989,2]
[346967070,1735438232539,-1391.2,0.00012989,2]
[346967071,1735438232548,-1333.24,0.00012989,2]
[346967072,1735438232558,-500.0,0.00012989,2]
[346967073,1735438232567,-3941.91,0.00012989,2]
[346967074,1735438232577,-1719.32,0.00012989,2]
[346967075,1735438232585,-500.0,0.00012989,2]
[346967076,1735438232595,-3791.46,0.00012989,2]
[346967078,1735438232604,-2056.88,0.00012989,2]
[346967080,1735438232613,-2565.75,0.00012989,2]
[346967082,1735438232622,-500.0,0.00012989,2]
[346967083,1735438232631,-949.41,0.00012989,2]
[346967085,1735438232640,-500.0,0.00012989,2]
[346967087,1735438232649,-500.0,0.00012989,2]
[346967089,1735438232660,-1039.39,0.00012989,2]
[346967091,1735438232669,-594.75689194,0.00012989,2]
[346967093,1735438232678,-500.0,0.00012989,2]
[346967094,1735438232690,-1000.0,0.00012989,2]
[346967095,1735438232699,-1000.0,0.00012989,2]
[346967096,1735438232708,-1000.0,0.00012989,2]
[346967097,1735438232718,-1000.0,0.00012989,2]
[346967098,1735438232727,-1000.0,0.00012989,2]
[346967099,1735438232737,-1000.0,0.00012989,2]
[346967100,1735438232746,-1000.0,0.00012989,2]
[346967101,1735438232754,-1000.0,0.00012989,2]
[346967102,1735438232763,-1000.0,0.00012989,2]
[346967103,1735438232773,-1000.0,0.00012989,2]
[346967104,1735438232782,-1000.0,0.00012989,2]
[346967105,1735438232791,-1000.0,0.00012989,2]
[346967106,1735438232800,-1000.0,0.00012989,2]
[346967107,1735438232812,-1000.0,0.00012989,2]
[346967108,1735438232821,-1000.0,0.00012989,2]
[346967109,1735438232831,-1000.0,0.00012989,2]
[346967110,1735438232842,-1000.0,0.00012989,2]
[346967111,1735438232852,-1000.0,0.00012989,2]
[346967112,1735438232862,-1000.0,0.00012989,2]
[346967113,1735438232871,-1000.0,0.00012989,2]
[346967114,1735438232881,-1000.0,0.00012989,2]
[346967115,1735438232891,-1000.0,0.00012989,2]
[346967116,1735438232899,-1000.0,0.00012989,2]
[346967117,1735438232908,-1000.0,0.00012989,2]
[346967118,1735438232917,-1000.0,0.00012989,2]
[346967119,1735438232926,-1000.0,0.00012989,2]
[346967120,1735438232936,-1000.0,0.00012989,2]
[346967121,1735438232946,-1000.0,0.00012989,2]
[346967122,1735438232955,-1000.0,0.00012989,2]
[346967123,1735438232964,-1000.0,0.00012989,2]
[346967124,1735438232973,-1000.0,0.00012989,2]
[346967125,1735438232982,-1000.0,0.00012989,2]
[346967126,1735438232991,-1000.0,0.00012989,2]
[346967127,1735438233002,-1000.0,0.00012989,2]
[346967128,1735438233011,-1000.0,0.00012989,2]
[346967129,1735438233020,-1000.0,0.00012989,2]
[346967130,1735438233029,-41835.02509478,0.0001299,2]
[346967131,1735438233428,-299.99,0.00012988,2]
[346967132,1735438233441,-364.09,0.00012988,2]
[346967133,1735438233449,-85.23685517,0.0001299,2]
[346967134,1735438233461,-299.99,0.0001299,2]
[346967135,1735438233471,-385.90652593,0.0001299,2]
[346967136,1735438233730,-573.04396659,0.0001299,2]
[346967156,1735438237846,-500.0,0.00012988,2]
[346967158,1735438237857,-1031.64,0.00012989,2]
[346967159,1735438237866,-612.4,0.00012989,2]
[346967160,1735438237875,-42320.29231153,0.0001299,2]
[346967161,1735438238029,-1023.74679934,0.0001299,2]
[346967162,1735438238040,-234057.77759535,0.0001299,2]
[346967163,1735438238051,-587.45201961,0.0001299,2]
[346967164,1735438238064,-196203.48247701,0.0001299,2]
[346967165,1735438238073,-131108.29756645,0.0001299,2]
[346967175,1735438238311,-496.99999,0.0001299,2]
[346967180,1735438239912,-2768.10488298,0.0001299,2]
[346967181,1735438240116,-1970.25,0.00012989,2]
[346967182,1735438240126,-261.64511702,0.0001299,2]
[346967183,1735438240137,-13192.76354519,0.0001299,2]
[346967184,1735438240148,-500.0,0.0001299,2]
[346967185,1735438240160,-3000.84839263,0.0001299,2]
[346967186,1735438240305,-500.0,0.00012988,2]
[346967187,1735438240314,-56836.31541095,0.0001299,2]
[346967188,1735438240323,-2068.03866203,0.00012997,4]
[346967189,1735438240332,-191.10548048,0.00012998,2]
[346967190,1735438240341,-500.0,0.00012998,2]
[346967191,1735438240351,-221.38373356,0.00012998,2]
[346967192,1735438240361,-1000.0,0.00012999,2]
[346967193,1735438240370,-1000.0,0.00012999,2]
[346967194,1735438240379,-1000.0,0.00012999,2]
[346967195,1735438240388,-1000.0,0.00012999,2]
[346967196,1735438240400,-1000.0,0.00012999,2]
[346967197,1735438240410,-1000.0,0.00012999,2]
[346967198,1735438240420,-1000.0,0.00012999,2]
[346967199,1735438240429,-1000.0,0.00012999,2]
[346967200,1735438240439,-1000.0,0.00012999,2]
[346967201,1735438240448,-1000.0,0.00012999,2]
[346967202,1735438240458,-1000.0,0.00012999,2]
[346967203,1735438240467,-1000.0,0.00012999,2]
[346967204,1735438240476,-1000.0,0.00012999,2]
[346967205,1735438240485,-1000.0,0.00012999,2]
[346967206,1735438240494,-1000.0,0.00012999,2]
[346967207,1735438240503,-1000.0,0.00012999,2]
[346967208,1735438240512,-1000.0,0.00012999,2]
[346967209,1735438240521,-1000.0,0.00012999,2]
[346967210,1735438240530,-1000.0,0.00012999,2]
[346967211,1735438240540,-1000.0,0.00012999,2]
[346967212,1735438240549,-1769.359,0.00012999,2]
[346967213,1735438240558,-211.527,0.00012999,2]
[346967214,1735438240568,-506.1479639,0.00012999,2]
[346967215,1735438240577,-500.0,0.00012999,2]
[346967216,1735438240586,-500.0,0.00012999,2]
[346967217,1735438240595,-500.0,0.00012999,2]
[346967218,1735438240604,-500.0,0.00012999,2]
[346967219,1735438240613,-500.0,0.00012999,2]
[346967220,1735438240623,-464.72446687,0.00012999,2]
[346967221,1735438240632,-500.0,0.00012999,2]
[346967222,1735438240641,-500.0,0.00012999,2]
[346967223,1735438240650,-500.45137472,0.00012999,2]
[346967224,1735438240659,-500.0,0.00012999,2]
[346967225,1735438240668,-500.0,0.00012999,2]
[346967226,1735438240677,-500.0,0.00012999,2]
[346967227,1735438240686,-1123.64,0.00012999,2]
[346967228,1735438240696,-500.0,0.00012999,2]
[346967229,1735438240705,-500.0,0.00012999,2]
[346967230,1735438240715,-500.0,0.00012999,2]
[346967231,1735438240724,-500.0,0.00012999,2]
[346967232,1735438240733,-500.0,0.00012999,2]
[346967233,1735438240743,-500.0,0.00012999,2]
[346967234,1735438240752,-500.0,0.00012999,2]
[346967235,1735438240761,-500.0,0.00012999,2]
[346967236,1735438240770,-500.0,0.00012999,2]
[346967237,1735438240779,-500.0,0.00012999,2]
[346967238,1735438240788,-500.0,0.00012999,2]
[346967239,1735438240797,-500.0,0.00012999,2]
[346967240,1735438240807,-500.0,0.00012999,2]
[346967241,1735438240817,-500.0,0.00012999,2]
[346967242,1735438240826,-500.0,0.00012999,2]
[346967243,1735438240836,-500.0,0.00012999,2]
[346967244,1735438240845,-500.0,0.00012999,2]
[346967245,1735438240854,-500.0,0.00012999,2]
[346967246,1735438240863,-500.0,0.00012999,2]
[346967247,1735438240872,-500.0,0.00012999,2]
[346967248,1735438240882,-500.0,0.00012999,2]
[346967249,1735438240891,-452.11568822,0.00012999,2]
[346967250,1735438240900,-500.0,0.00012999,2]
[346967251,1735438240909,-500.0,0.00012999,2]
[346967252,1735438240919,-500.0,0.00012999,2]
[346967253,1735438240928,-500.0,0.00012999,2]
[346967254,1735438241113,-500.0,0.00012999,2]
[346967255,1735438241125,-515.26191648,0.00012999,2]
[346967256,1735438241134,-500.0,0.00012999,2]
[346967257,1735438241143,-500.0,0.00012999,2]
[346967258,1735438241153,-500.0,0.00012999,2]
[346967259,1735438241162,-500.0,0.00012999,2]
[346967260,1735438241171,-500.0,0.00012999,2]
[346967261,1735438241180,-500.0,0.00012999,2]
[346967262,1735438241191,-500.0,0.00012999,2]
[346967263,1735438241205,-500.0,0.00012999,2]
[346967264,1735438241214,-500.0,0.00012999,2]
[346967265,1735438241224,-500.0,0.00012999,2]
[346967266,1735438241233,-500.0,0.00012999,2]
[346967267,1735438241242,-500.0,0.00012999,2]
[346967268,1735438241252,-500.0,0.00012999,2]
[346967269,1735438241261,-500.0,0.00012999,2]
[346967270,1735438241270,-500.0,0.00012999,2]
[346967271,1735438241279,-500.0,0.00012999,2]
[346967272,1735438241289,-500.0,0.00012999,2]
[346967273,1735438241300,-500.0,0.00012999,2]
[346967274,1735438241310,-505.1886089,0.00012999,2]
[346967275,1735438241321,-500.0,0.00012999,2]
[346967276,1735438241331,-500.0,0.00012999,2]
[346967277,1735438241340,-500.0,0.00012999,2]
[346967278,1735438241350,-500.0,0.00012999,2]
[346967279,1735438241359,-500.0,0.00012999,2]
[346967280,1735438241368,-500.0,0.00012999,2]
[346967281,1735438241378,-510.21691081,0.00012999,2]
[346967282,1735438241387,-500.0,0.00012999,2]
[346967283,1735438241396,-500.0,0.00012999,2]
[346967284,1735438241406,-500.0,0.00012999,2]
[346967285,1735438241416,-500.0,0.00012999,2]
[346967286,1735438241425,-500.0,0.00012999,2]
[346967287,1735438241434,-500.0,0.00012999,2]
[346967288,1735438241444,-526.61,0.00012999,2]
[346967289,1735438241453,-500.0,0.00012999,2]
[346967290,1735438241463,-500.0,0.00012999,2]
[346967291,1735438241473,-500.0,0.00012999,2]
[346967292,1735438241482,-500.0,0.00012999,2]
[346967293,1735438241491,-500.0,0.00012999,2]
[346967294,1735438241501,-500.0,0.00012999,2]
[346967295,1735438241512,-500.0,0.00012999,2]
[346967296,1735438241522,-500.0,0.00012999,2]
[346967297,1735438241532,-500.0,0.00012999,2]
[346967298,1735438241541,-540.1077124,0.00012999,2]
[346967299,1735438241552,-500.0,0.00012999,2]
[346967300,1735438241562,-500.0,0.00012999,2]
[346967301,1735438241571,-500.0,0.00012999,2]
[346967302,1735438241582,-500.0,0.00012999,2]
[346967303,1735438241592,-500.0,0.00012999,2]
[346967304,1735438241601,-500.0,0.00012999,2]
[346967305,1735438241611,-500.0,0.00012999,2]
[346967306,1735438241620,-543.95978278,0.00012999,2]
[346967307,1735438241630,-500.0,0.00012999,2]
[346967308,1735438241639,-500.0,0.00012999,2]
[346967309,1735438241649,-500.0,0.00012999,2]
[346967310,1735438241658,-500.0,0.00012999,2]
[346967311,1735438241668,-501.32763567,0.00012999,2]
[346967312,1735438241677,-500.0,0.00012999,2]
[346967313,1735438241686,-500.0,0.00012999,2]
[346967314,1735438241696,-500.0,0.00012999,2]
[346967315,1735438241706,-500.0,0.00012999,2]
[346967316,1735438241715,-500.0,0.00012999,2]
[346967317,1735438241724,-604.87278867,0.00012999,2]
[346967318,1735438241733,-500.0,0.00012999,2]
[346967319,1735438241743,-500.0,0.00012999,2]
[346967320,1735438241752,-500.0,0.00012999,2]
[346967321,1735438241762,-500.0,0.00012999,2]
[346967322,1735438241771,-500.0,0.00012999,2]
[346967323,1735438241780,-354.92398509,0.00012999,2]
[346967324,1735438241790,-500.0,0.00012999,2]
[346967325,1735438241799,-500.0,0.00012999,2]
[346967326,1735438241808,-500.0,0.00012999,2]
[346967327,1735438241818,-500.0,0.00012999,2]
[346967328,1735438241828,-500.0,0.00012999,2]
[346967329,1735438241838,-500.0,0.00012999,2]
[346967330,1735438241847,-500.0,0.00012999,2]
[346967331,1735438241857,-500.0,0.00012999,2]
[346967332,1735438241866,-500.0,0.00012999,2]
[346967333,1735438241876,-567.32,0.00012999,2]
[346967334,1735438241885,-646.44505408,0.00012999,2]
[346967335,1735438241895,-500.0,0.00012999,2]
[346967336,1735438241904,-500.0,0.00012999,2]
[346967337,1735438241914,-500.0,0.00012999,2]
[346967338,1735438241924,-500.0,0.00012999,2]
[346967339,1735438241934,-161.44073795,0.00012999,2]
[346967340,1735438241944,-502.40735998,0.00012999,2]
[346967341,1735438241954,-500.0,0.00012999,2]
[346967342,1735438241965,-451.13471213,0.00012999,2]
[346967343,1735438241975,-500.0,0.00012999,2]
[346967344,1735438241984,-341.33446992,0.00012999,2]
[346967345,1735438242002,-158.66553008,0.00012999,2]
[346967346,1735438242012,-500.0,0.00012999,2]
[346967347,1735438242022,-500.0,0.00012999,2]
[346967348,1735438242032,-500.0,0.00012999,2]
[346967349,1735438242041,-1988.86,0.00012999,2]
[346967350,1735438242050,-500.0,0.00012999,2]
[346967351,1735438242060,-500.0,0.00012999,2]
[346967352,1735438242068,-500.0,0.00012999,2]
[346967353,1735438242078,-500.0,0.00012999,2]
[346967354,1735438242087,-504.600112,0.00012999,2]
[346967355,1735438242096,-500.0,0.00012999,2]
[346967356,1735438242105,-577.13,0.00012999,2]
[346967357,1735438242114,-500.0,0.00012999,2]
[346967358,1735438242123,-500.0,0.00012999,2]
[346967359,1735438242132,-500.0,0.00012999,2]
[346967360,1735438242141,-500.0,0.00012999,2]
[346967361,1735438242151,-500.0,0.00012999,2]
[346967362,1735438242160,-500.0,0.00012999,2]
[346967363,1735438242170,-500.0,0.00012999,2]
[346967364,1735438242179,-500.0,0.00012999,2]
[346967365,1735438242190,-500.0,0.00012999,2]
[346967366,1735438242202,-371.15775792,0.00012999,2]
[346967373,1735438242968,-128.84224208,0.00012999,2]
[346967374,1735438242977,-373.07139369,0.00012999,2]
[346967375,1735438242988,-126.92860631,0.00012999,2]
[346967376,1735438242997,-500.0,0.00012999,2]
[346967377,1735438243006,-500.0,0.00012999,2]
[346967378,1735438243016,-500.0,0.00012999,2]
[346967379,1735438243024,-500.0,0.00012999,2]
[346967380,1735438243034,-500.0,0.00012999,2]
[346967381,1735438243042,-500.0,0.00012999,2]
[346967382,1735438243052,-624.82361333,0.00012999,2]
[346967383,1735438243060,-508.01925008,0.00012999,2]
[346967384,1735438243069,-500.0,0.00012999,2]
[346967385,1735438243078,-507.547227,0.00012999,2]
[346967386,1735438243087,-500.0,0.00012999,2]
[346967387,1735438243096,-500.0,0.00012999,2]
[346967388,1735438243105,-500.0,0.00012999,2]
[346967389,1735438243113,-500.0,0.00012999,2]
[346967390,1735438243123,-500.0,0.00012999,2]
[346967391,1735438243132,-500.0,0.00012999,2]
[346967392,1735438243141,-500.0,0.00012999,2]
[346967393,1735438243149,-500.0,0.00012999,2]
[346967394,1735438243159,-815.28,0.00012999,2]
[346967395,1735438243167,-1921.17,0.00012999,2]
[346967396,1735438243177,-500.0,0.00012999,2]
[346967397,1735438243186,-500.0,0.00012999,2]
[346967398,1735438243197,-500.0,0.00012999,2]
[346967399,1735438243209,-500.0,0.00012999,2]
[346967400,1735438243218,-500.0,0.00012999,2]
[346967401,1735438243227,-500.0,0.00012999,2]
[346967402,1735438243237,-500.0,0.00012999,2]
[346967403,1735438243246,-500.0,0.00012999,2]
[346967404,1735438243255,-500.0,0.00012999,2]
[346967405,1735438243265,-500.0,0.00012999,2]
[346967406,1735438243275,-500.0,0.00012999,2]
[346967407,1735438243284,-500.0,0.00012999,2]
[346967408,1735438243295,-500.0,0.00012999,2]
[346967409,1735438243304,-500.0,0.00012999,2]
[346967410,1735438243314,-500.0,0.00012999,2]
[346967411,1735438243323,-500.0,0.00012999,2]
[346967412,1735438243333,-500.0,0.00012999,2]
[346967413,1735438243342,-502.1975576,0.00012999,2]
[346967414,1735438243351,-978.76,0.00012999,2]
[346967415,1735438243360,-500.0,0.00012999,2]
[346967416,1735438243369,-500.0,0.00012999,2]
[346967417,1735438243379,-502.33974679,0.00012999,2]
[346967418,1735438243388,-500.0,0.00012999,2]
[346967419,1735438243397,-500.0,0.00012999,2]
[346967420,1735438243407,-500.55355692,0.00012999,2]
[346967421,1735438243416,-500.0,0.00012999,2]
[346967422,1735438243425,-500.0,0.00012999,2]
[346967423,1735438243434,-500.0,0.00012999,2]
[346967424,1735438243445,-500.0,0.00012999,2]
[346967425,1735438243454,-500.0,0.00012999,2]
[346967426,1735438243464,-1798.43,0.00012999,2]
[346967427,1735438243474,-500.0,0.00012999,2]
[346967428,1735438243484,-501.07529078,0.00012999,2]
[346967429,1735438243493,-500.0,0.00012999,2]
[346967430,1735438243502,-500.0,0.00012999,2]
[346967431,1735438243513,-500.0,0.00012999,2]
[346967432,1735438243522,-500.0,0.00012999,2]
[346967433,1735438243531,-500.0,0.00012999,2]
[346967434,1735438243540,-500.0,0.00012999,2]
[346967435,1735438243549,-52.87140641,0.00012999,2]
[346967436,1735438244059,-854.96859359,0.00012999,2]
[346967437,1735438244068,-500.0,0.00012999,2]
[346967438,1735438244077,-285.03132344,0.00012999,2]
[346967439,1735438244104,-214.96867656,0.00012999,2]
[346967440,1735438244113,-218.42138594,0.00012999,2]
[346967441,1735438244124,-281.57861406,0.00012999,2]
[346967442,1735438244133,-671.02278594,0.00012999,2]
[346967443,1735438244145,-105.30721406,0.00012999,2]
[346967444,1735438244154,-346.58256275,0.00012999,2]
[346967445,1735438244167,-245.04743725,0.00012999,2]
[346967446,1735438244176,-500.0,0.00012999,2]
[346967447,1735438244185,-500.0,0.00012999,2]
[346967448,1735438244194,-829.81193516,0.00012999,2]
[346967449,1735438244240,-1947.01661006,0.00012999,2]
[346967452,1735438246106,-205.53646924,0.00011296,2]
[346967453,1735438246116,-387.76711094,0.00012988,2]
[346967454,1735438246128,-112.23288906,0.00012988,2]
[346967455,1735438246137,-206.0675508,0.00012999,2]
[346967456,1735438246150,-281.0,0.00012999,2]
[346967457,1735438246336,-500.0,0.00012988,2]
[346967458,1735438246346,-133.5963112,0.00012999,2]
[346967459,1735438246358,-3510.26759278,0.00012999,2]
[346967460,1735438246368,-500.0,0.00012999,2]
[346967461,1735438246377,-500.0,0.00012999,2]
[346967462,1735438246387,-331.5296789,0.00012999,2]
[346967463,1735438246399,-168.4703211,0.00012999,2]
[346967464,1735438246408,-500.0,0.00012999,2]
[346967465,1735438246417,-500.0,0.00012999,2]
[346967466,1735438246426,-500.0,0.00012999,2]
[346967467,1735438246436,-356.4062236,0.00012999,2]
[346967468,1735438246448,-146.06591615,0.00012999,2]
[346967469,1735438246458,-500.0,0.00012999,2]
[346967470,1735438246467,-500.0,0.00012999,2]
[346967471,1735438246476,-500.0,0.00012999,2]
[346967472,1735438246486,-500.0,0.00012999,2]
[346967473,1735438246495,-500.0,0.00012999,2]
[346967474,1735438246504,-520.91469317,0.00012999,2]
[346967475,1735438246513,-500.0,0.00012999,2]
[346967476,1735438246523,-500.0,0.00012999,2]
[346967477,1735438246532,-500.0,0.00012999,2]
[346967478,1735438246541,-500.0,0.00012999,2]
[346967479,1735438246552,-500.0,0.00012999,2]
[346967480,1735438246561,-500.0,0.00012999,2]
[346967481,1735438246570,-221.44982777,0.00012999,2]
[346967482,1735438246580,-509.99,0.00012999,2]
[346967483,1735438246589,-500.0,0.00012999,2]
[346967484,1735438246598,-2083.75730406,0.00012999,2]
[346967485,1735438246607,-500.0,0.00012999,2]
[346967486,1735438246617,-500.0,0.00012999,2]
[346967487,1735438246626,-500.0,0.00012999,2]
[346967488,1735438246635,-650.44,0.00012999,2]